fUST/lending_fUST_20240909
["ID","MTS","AMOUNT","RATE_DAILY","PERIOD"]
[337592467,1725874243801,-151.0,0.00039251,14]
[337592469,1725874243811,-1584.91,0.00039251,30]
[337592471,1725874243820,-287.47311274,0.00039251,30]
[337592473,1725874243830,-500.87711517,0.00039251,30]
[337592475,1725874243840,-702.79,0.00039251,30]
[337592477,1725874243849,-1093.82,0.00039251,30]
[337592479,1725874243858,-1809.12,0.00039251,30]
[337592481,1725874243868,-500.0,0.00039273,5]
[337592483,1725874243877,-580.25286504,0.00039273,5]
[337592485,1725874243889,-500.0,0.00039273,5]
[337592486,1725874243898,-341.00443164,0.00039273,5]
[337592489,1725874243918,-159.56556062,0.00039273,5]
[337592492,1725874243928,-501.06333028,0.00039273,5]
[337592494,1725874243940,-501.25041749,0.00039273,2]
[337592496,1725874243950,-151.0,0.00039273,14]
[337592498,1725874243960,-150.0,0.00039277,2]
[337592500,1725874243970,-364.4745599,0.00039288,2]
[337592502,1725874243980,-415.427344,0.00039288,2]
[337592504,1725874243989,-2000.0,0.00039354,2]
[337592506,1725874244000,-1568.80898226,0.00039354,2]
[337592508,1725874244009,-305.011856,0.00039354,14]
[337592510,1725874244019,-305.011856,0.00039354,14]
[337592512,1725874244028,-363.637776,0.00039354,14]
[337592514,1725874244038,-363.637776,0.00039354,14]
[337592516,1725874244047,-105480.8828034,0.00039355,2]
[337592518,1725874244056,-151.0,0.00039355,2]
[337592520,1725874244066,-389.313991,0.00039355,14]
[337592522,1725874244075,-389.313991,0.00039355,14]
[337592524,1725874244084,-281.832942,0.00039355,14]
[337592526,1725874244095,-281.832942,0.00039355,14]
[337592528,1725874244107,-151.0,0.00039355,14]
[337592531,1725874244118,-465.744916,0.00039355,14]
[337592533,1725874244129,-465.744916,0.00039355,14]
[337592535,1725874244140,-232.312624,0.00039355,14]
[337592537,1725874244150,-232.312624,0.00039355,14]
[337592539,1725874244159,-184.944685,0.00039355,14]
[337592541,1725874244169,-151.0,0.00039355,14]
[337592543,1725874244179,-184.944685,0.00039355,14]
[337592545,1725874244188,-212.229401,0.00039355,14]
[337592547,1725874244198,-151.0,0.00039355,14]
[337592548,1725874244208,-2010.62441506,0.00039393,2]
[337592549,1725874244218,-169.59,0.00039412,7]
[337592550,1725874244227,-170.81,0.00039412,7]
[337592552,1725874244237,-5693.65,0.00039452,30]
[337592554,1725874244247,-500.0,0.00039452,30]
[337592556,1725874244256,-10460.08,0.00039452,30]
[337592557,1725874244266,-5316.58,0.00039452,30]
[337592558,1725874244275,-1229.05,0.00039452,30]
[337592559,1725874244285,-1496.29,0.00039452,30]
[337592560,1725874244295,-1782.97,0.00039452,30]
[337592561,1725874244306,-500.0,0.00039452,30]
[337592562,1725874244316,-2068.56,0.00039452,30]
[337592563,1725874244325,-500.0,0.00039452,30]
[337592564,1725874244335,-1818.59,0.00039452,30]
[337592565,1725874244345,-1643.25,0.00039452,30]
[337592566,1725874244354,-7668.42,0.00039452,30]
[337592567,1725874244363,-500.0,0.00039452,30]
[337592568,1725874244373,-1315.99,0.00039452,30]
[337592569,1725874244384,-22814.3607698,0.00039452,18]
[337592572,1725874247019,-1705.73,0.00039238,30]
[337592573,1725874247028,-743.78,0.00039239,30]
[337592574,1725874247037,-500.0,0.00039251,30]
[337592575,1725874247046,-1783.23467236,0.00039452,18]
[337592603,1725874264834,160.397631,0.00034737,2]
[337592604,1725874265056,58.35890026,0.00034888,2]
[337592605,1725874265082,102.03873074,0.00034888,2]
[337592606,1725874265262,160.397631,0.00035039,2]
[337592607,1725874265483,160.397631,0.00035189,2]
[337592608,1725874265705,160.397631,0.0003534,2]
[337592609,1725874266017,160.397631,0.00035491,2]
[337592610,1725874266271,160.397631,0.00035642,2]
[337592611,1725874266502,160.397631,0.00035793,2]
[337592612,1725874266708,160.397631,0.00035944,2]
[337592613,1725874266933,160.397631,0.00036094,2]
[337592614,1725874267143,160.397631,0.00036245,2]
[337592615,1725874267358,160.397631,0.00036396,2]
[337592642,1725874823592,5487.88596476,0.0003,120]
[337592691,1725875137147,-253.1098727,0.00032056,2]
[337592692,1725875137170,-167.6357544,0.00032081,2]
[337592693,1725875137190,-506.208887,0.0003221,2]
[337592694,1725875137211,-175.216626,0.00032447,2]
[337592695,1725875137232,-175.216626,0.00032869,2]
[337592696,1725875137252,-506.208887,0.00032895,2]
[337592697,1725875137273,-400.0,0.00033152,2]
[337592698,1725875137295,-266.0,0.00033152,2]
[337592699,1725875137317,-193.0,0.00033152,30]
[337592700,1725875137338,-221.0,0.00033153,2]
[337592701,1725875137361,-24900.0,0.00033153,2]
[337592702,1725875137384,-175.216626,0.00033292,2]
[337592703,1725875137405,-506.208887,0.0003358,2]
[337592704,1725875137433,-175.216626,0.00033715,2]
[337592705,1725875137459,-175.216626,0.00034137,2]
[337592706,1725875137670,-23019.5261579,0.00035572,2]
[337592707,1725875137697,-5935.2630719,0.00035723,2]
[337592708,1725875137720,-150.112233,0.00036,9]
[337592709,1725875137742,-150.112233,0.000361,7]
[337592710,1725875137765,-221.0,0.00036153,2]
[337592711,1725875137786,-150.112233,0.000362,7]
[337592712,1725875137808,-150.112233,0.000363,7]
[337592713,1725875137829,-150.112233,0.000364,5]
[337592714,1725875137850,-560.0,0.00036467,2]
[337592715,1725875137872,-150.112233,0.000365,10]
[337592716,1725875137894,-150.112233,0.000366,10]
[337592717,1725875137916,-150.112233,0.000367,9]
[337592718,1725875137937,-150.112233,0.000368,6]
[337592719,1725875137959,-12.62806137,0.000369,9]
[337592720,1725875147103,-137.48417163,0.000369,9]
[337592721,1725875147126,-150.112233,0.00037,5]
[337592722,1725875147149,-150.112233,0.000371,9]
[337592723,1725875147172,-150.112233,0.000372,10]
[337592724,1725875147195,-150.112233,0.000373,8]
[337592725,1725875147217,-938.60242926,0.00038,2]
[337592726,1725875147239,-1801.32891463,0.00038244,2]
[337592727,1725875147262,-4361.82846959,0.00038246,2]
[337592728,1725875147283,-268.23,0.00038326,3]
[337592729,1725875147304,-324.63,0.00038326,3]
[337592730,1725875147325,-223.53,0.00038326,3]
[337592732,1725875147347,-162.31,0.00038326,3]
[337592733,1725875147368,-186.27,0.00038326,3]
[337592734,1725875147389,-222.0,0.00038335,2]
[337592735,1725875147412,-500.0,0.00038335,15]
[337592736,1725875147435,-175.7910282,0.00038335,15]
[337592737,1725875147458,-349.85220841,0.00038335,15]
[337592738,1725875147479,-500.0,0.00038335,15]
[337592739,1725875147502,-500.0,0.00038335,15]
[337592740,1725875147526,-500.0,0.00038335,7]
[337592741,1725875147548,-167.19719932,0.00038335,15]
[337592742,1725875147584,-500.0,0.00038335,7]
[337592743,1725875147606,-500.0,0.00038335,15]
[337592744,1725875147628,-500.0,0.00038335,15]
[337592745,1725875147652,-500.0,0.00038335,7]
[337592746,1725875147674,-500.0,0.00038335,15]
[337592747,1725875147697,-500.0,0.00038335,15]
[337592748,1725875147720,-500.0,0.00038335,7]
[337592749,1725875147742,-500.0,0.00038335,15]
[337592750,1725875147766,-500.0,0.00038335,15]
[337592751,1725875147791,-500.0,0.00038335,7]
[337592752,1725875147812,-250.0,0.00038335,15]
[337592753,1725875147836,-500.0,0.00038335,15]
[337592754,1725875147859,-500.0,0.00038335,7]
[337592755,1725875147881,-500.0,0.00038335,15]
[337592756,1725875147904,-500.0,0.00038335,7]
[337592757,1725875147926,-380.66002682,0.00038335,7]
[337592758,1725875147949,-93208.73730322,0.00038336,4]
[337592759,1725875158510,350354.95836095,0.0003,2]
[337592762,1725875201131,-1488.8245398,0.00038236,2]
[337592763,1725875201155,-303.81934643,0.00038255,2]
[337592766,1725875239295,-200.31810428,0.0003759,7]
[337592767,1725875239320,-381.17832139,0.00038255,2]
[337592768,1725875239350,-400.0,0.00038255,2]
[337592769,1725875239373,-34550.42369425,0.00038256,120]
[337592770,1725875239398,-486.96,0.00038326,3]
[337592771,1725875239422,-270.52,0.00038326,3]
[337592772,1725875239445,-811.58,0.00038326,3]
[337592773,1725875239469,-188.62,0.00038326,3]
[337592774,1725875239493,-157.18,0.00038326,3]
[337592775,1725875239515,-785.95,0.00038326,3]
[337592776,1725875239541,-48261.38315578,0.00038336,4]
[337592777,1725875239565,-60616.21312776,0.00038336,4]
[337592779,1725875254350,-6674.8186328,0.00034764,2]
[337592780,1725875254374,-19718.08370234,0.00038336,4]
[337592781,1725875254396,-500.0,0.00038345,15]
[337592782,1725875254418,-242.67340883,0.00038345,15]
[337592783,1725875254441,-54771.67357347,0.00038346,4]
[337592827,1725875437832,-298.0,0.00037999,2]
[337592828,1725875437843,-45664.41,0.00038,120]
[337592829,1725875437854,-1000.0,0.00038,120]
[337592830,1725875437865,-541.04,0.00038326,3]
[337592831,1725875437875,-519.87138618,0.00038335,15]
[337592832,1725875437885,-322849.43790372,0.00038336,4]
[337592833,1725875437899,-121126.86488428,0.00038336,4]
[337592834,1725875437908,-63086.25027953,0.00038336,4]
[337592835,1725875437921,-4843.31219177,0.00038336,4]
[337592836,1725875437932,-37150.32087129,0.00038346,4]
[337592837,1725875438280,-12528.76674256,0.00038346,4]
[337592857,1725875439902,-5899.64531725,0.00038346,4]
[337592859,1725875439913,-506.288,0.00038346,120]
[337592861,1725875439923,-500.0,0.00038346,120]
[337592863,1725875439933,-2000.0,0.00038355,2]
[337592865,1725875439944,-194.87216246,0.00038355,2]
[337592868,1725875439962,-1373.9368198,0.00038355,2]
[337592870,1725875439972,-338.13317802,0.00038355,7]
[337592872,1725875439982,-500.0,0.00038356,30]
[337592874,1725875439991,-500.0,0.00038356,30]
[337592876,1725875440002,-694.96,0.00038356,30]
[337592878,1725875440011,-500.0,0.00038356,30]
[337592880,1725875440021,-500.0,0.00038356,30]
[337592882,1725875440031,-500.0,0.00038356,30]
[337592884,1725875440041,-500.0,0.00038356,30]
[337592886,1725875440051,-500.0,0.00038356,30]
[337592888,1725875440061,-500.0,0.00038356,30]
[337592890,1725875440071,-500.0,0.00038356,30]
[337592892,1725875440081,-501.62178188,0.00038356,30]
[337592894,1725875440090,-500.0,0.00038356,30]
[337592896,1725875440102,-502.1513624,0.00038356,30]
[337592898,1725875440113,-500.0,0.00038356,30]
[337592899,1725875440123,-500.0,0.00038356,30]
[337592900,1725875440133,-502.66399721,0.00038356,30]
[337592901,1725875440143,-500.0,0.00038356,30]
[337592902,1725875440155,-500.0,0.00038356,30]
[337592903,1725875440170,-808.69,0.00038356,30]
[337592904,1725875440182,-500.0,0.00038356,30]
[337592905,1725875440193,-502.17225633,0.00038356,30]
[337592906,1725875440203,-654.56,0.00038356,30]
[337592907,1725875440214,-501.45512182,0.00038356,30]
[337592908,1725875440225,-500.0,0.00038356,30]
[337592909,1725875440236,-500.0,0.00038356,30]
[337592910,1725875440246,-500.0,0.00038356,30]
[337592911,1725875440257,-500.0,0.00038356,30]
[337592912,1725875440267,-598.49,0.00038356,30]
[337592913,1725875440277,-448.34734926,0.00038356,30]
[337592914,1725875440287,-1545.68,0.00038356,30]
[337592915,1725875440296,-500.0,0.00038356,30]
[337592916,1725875440306,-500.0,0.00038356,30]
[337592917,1725875440316,-302.3,0.00038356,7]
[337592918,1725875440326,-511.21213967,0.00038356,30]
[337592919,1725875440337,-502.35896847,0.00038356,30]
[337592920,1725875440348,-612.33,0.00038356,30]
[337592921,1725875440359,-604.42,0.00038356,30]
[337592922,1725875440369,-513.66900791,0.00038356,30]
[337592923,1725875440379,-500.0,0.00038356,30]
[337592924,1725875440391,-500.0,0.00038356,30]
[337592925,1725875440401,-500.0,0.00038356,30]
[337592926,1725875440412,-500.0,0.00038356,30]
[337592927,1725875440423,-500.0,0.00038356,30]
[337592928,1725875440435,-500.0,0.00038356,30]
[337592929,1725875440446,-500.0,0.00038356,30]
[337592930,1725875440457,-500.0,0.00038356,30]
[337592931,1725875440466,-500.0,0.00038356,30]
[337592932,1725875440476,-500.0,0.00038356,30]
[337592933,1725875440486,-513.24691996,0.00038356,30]
[337592934,1725875440495,-500.0,0.00038356,30]
[337592935,1725875440505,-500.0,0.00038356,30]
[337592936,1725875440514,-500.0,0.00038356,30]
[337592937,1725875440524,-500.0,0.00038356,30]
[337592938,1725875440534,-500.0,0.00038356,30]
[337592939,1725875440546,-500.0,0.00038356,30]
[337592940,1725875440558,-500.0,0.00038356,30]
[337592941,1725875440568,-500.0,0.00038356,30]
[337592942,1725875440579,-526.88,0.00038356,30]
[337592943,1725875440589,-500.0,0.00038356,30]
[337592944,1725875440599,-500.0,0.00038356,30]
[337592945,1725875440609,-896.05,0.00038356,30]
[337592946,1725875440620,-500.0,0.00038356,30]
[337592947,1725875440631,-500.0,0.00038356,30]
[337592948,1725875440640,-500.0,0.00038356,10]
[337592949,1725875440651,-501.53743628,0.00038356,30]
[337592950,1725875440661,-500.0,0.00038356,30]
[337592951,1725875440671,-500.0,0.00038356,30]
[337592952,1725875440682,-500.0,0.00038356,30]
[337592953,1725875440692,-1634.65,0.00038356,30]
[337592954,1725875440705,-501.81241,0.00038356,30]
[337592955,1725875440716,-500.0,0.00038356,30]
[337592956,1725875440727,-500.0,0.00038356,30]
[337592957,1725875440737,-568.18,0.00038356,30]
[337592958,1725875440751,-1688.15,0.00038356,30]
[337592959,1725875440761,-500.0,0.00038356,30]
[337592960,1725875440772,-501.4238633,0.00038356,30]
[337592961,1725875440789,-537.14316123,0.00038356,30]
[337592962,1725875440800,-500.0,0.00038356,30]
[337592963,1725875440809,-500.0,0.00038356,30]
[337592964,1725875440821,-500.0,0.00038356,30]
[337592965,1725875440831,-771.28,0.00038356,30]
[337592966,1725875440841,-500.0,0.00038356,30]
[337592967,1725875440851,-500.0,0.00038356,30]
[337592968,1725875440862,-1622.17,0.00038356,30]
[337592969,1725875440872,-2463.67,0.00038356,30]
[337592970,1725875440882,-500.0,0.00038356,30]
[337592971,1725875440893,-180.63098617,0.00038356,30]
[337592972,1725875440903,-1390.8,0.00038356,30]
[337592973,1725875440913,-500.0,0.00038356,30]
[337592974,1725875440923,-500.0,0.00038356,30]
[337592975,1725875440936,-645.93,0.00038356,30]
[337592976,1725875440947,-500.0,0.00038356,30]
[337592977,1725875440959,-500.0,0.00038356,2]
[337592978,1725875440970,-500.0,0.00038356,30]
[337592979,1725875440981,-500.0,0.00038356,30]
[337592980,1725875440992,-500.0,0.00038356,30]
[337592981,1725875441003,-500.0,0.00038356,30]
[337592982,1725875441012,-512.76458089,0.00038356,30]
[337592983,1725875441023,-910.99,0.00038356,30]
[337592984,1725875441033,-500.0,0.00038356,30]
[337592985,1725875441044,-500.0,0.00038356,30]
[337592986,1725875441055,-500.0,0.00038356,30]
[337592987,1725875441075,-500.0,0.00038356,30]
[337592988,1725875441087,-500.0,0.00038356,30]
[337592989,1725875441098,-500.0,0.00038356,30]
[337592990,1725875441107,-1643.4,0.00038356,30]
[337592991,1725875441117,-501.05563708,0.00038356,30]
[337592992,1725875441128,-500.0,0.00038356,30]
[337592993,1725875441138,-500.0,0.00038356,30]
[337592994,1725875441148,-500.0,0.00038356,30]
[337592995,1725875441160,-500.0,0.00038356,30]
[337592996,1725875441171,-500.72408955,0.00038356,30]
[337592997,1725875441183,-645.18,0.00038356,30]
[337592998,1725875441195,-507.8829069,0.00038356,30]
[337592999,1725875441206,-622.3682398,0.00038356,30]
[337593000,1725875441216,-500.0,0.00038356,30]
[337593001,1725875441227,-500.0,0.00038356,30]
[337593002,1725875441237,-719.8,0.00038356,30]
[337593003,1725875441247,-500.0,0.00038356,30]
[337593004,1725875441257,-500.0,0.00038356,30]
[337593005,1725875441266,-500.0,0.00038356,30]
[337593006,1725875441276,-500.0,0.00038356,30]
[337593007,1725875441287,-500.0,0.00038356,30]
[337593008,1725875441296,-500.0,0.00038356,30]
[337593009,1725875441307,-693.91,0.00038356,30]
[337593010,1725875441317,-2210.56,0.00038356,30]
[337593011,1725875441327,-500.0,0.00038356,30]
[337593012,1725875441337,-753.88,0.00038356,30]
[337593013,1725875441349,-500.0,0.00038356,30]
[337593014,1725875441360,-500.0,0.00038356,30]
[337593015,1725875441371,-500.0,0.00038356,30]
[337593016,1725875441381,-500.0,0.00038356,30]
[337593017,1725875441391,-599.59,0.00038356,30]
[337593018,1725875441402,-500.0,0.00038356,30]
[337593019,1725875441413,-500.0,0.00038356,30]
[337593020,1725875441423,-1344.8,0.00038356,30]
[337593021,1725875441435,-500.0,0.00038356,30]
[337593022,1725875441444,-532.76,0.00038356,30]
[337593023,1725875441454,-500.0,0.00038356,30]
[337593024,1725875441465,-500.0,0.00038356,30]
[337593025,1725875441475,-500.0,0.00038356,30]
[337593026,1725875441485,-500.0,0.00038356,30]
[337593027,1725875441494,-500.0,0.00038356,30]
[337593028,1725875441506,-500.0,0.00038356,30]
[337593029,1725875441518,-500.0,0.00038356,30]
[337593030,1725875441529,-500.0,0.00038356,30]
[337593031,1725875441538,-500.0,0.00038356,30]
[337593032,1725875441549,-500.0,0.00038356,30]
[337593033,1725875441559,-1666.34,0.00038356,30]
[337593034,1725875441569,-698.78,0.00038356,30]
[337593035,1725875441817,-500.0,0.00038356,30]
[337593036,1725875441830,-244.009485,0.00038356,14]
[337593037,1725875441840,-500.0,0.00038356,30]
[337593038,1725875441849,-244.009485,0.00038356,14]
[337593039,1725875441858,-500.0,0.00038356,30]
[337593040,1725875441868,-244.009485,0.00038356,14]
[337593041,1725875441878,-244.009485,0.00038356,14]
[337593042,1725875441887,-500.0,0.00038356,30]
[337593043,1725875441897,-577.62,0.00038356,30]
[337593044,1725875441906,-500.0,0.00038356,30]
[337593045,1725875441916,-500.0,0.00038356,30]
[337593046,1725875441926,-500.0,0.00038356,30]
[337593047,1725875441936,-500.0,0.00038356,30]
[337593048,1725875441946,-500.0,0.00038356,30]
[337593049,1725875441957,-500.0,0.00038356,30]
[337593050,1725875441967,-500.0,0.00038356,30]
[337593051,1725875441977,-500.0,0.00038356,30]
[337593052,1725875441986,-500.0,0.00038356,30]
[337593053,1725875441996,-504.75987686,0.00038356,30]
[337593054,1725875442006,-500.36544117,0.00038356,30]
[337593055,1725875442015,-500.0,0.00038356,30]
[337593056,1725875442025,-500.0,0.00038356,30]
[337593057,1725875442035,-2524.77,0.00038356,30]
[337593058,1725875442046,-500.0,0.00038356,30]
[337593059,1725875442059,-502.88880513,0.00038356,30]
[337593060,1725875442069,-500.0,0.00038356,30]
[337593061,1725875442079,-577.38,0.00038356,30]
[337593062,1725875442089,-577.38,0.00038356,30]
[337593063,1725875442099,-577.38,0.00038356,30]
[337593064,1725875442108,-500.9987486,0.00038356,30]
[337593065,1725875442118,-577.38,0.00038356,30]
[337593066,1725875442128,-461.4116296,0.00038356,30]
[337593067,1725875442138,-577.38,0.00038356,30]
[337593068,1725875442148,-500.0,0.00038356,30]
[337593069,1725875442158,-577.38,0.00038356,30]
[337593070,1725875442169,-500.0,0.00038356,30]
[337593071,1725875442178,-500.28680857,0.00038356,30]
[337593072,1725875442189,-500.0,0.00038356,30]
[337593073,1725875442199,-452.40785029,0.00038356,30]
[337593074,1725875442209,-500.0,0.00038356,30]
[337593075,1725875442218,-500.0,0.00038356,30]
[337593076,1725875442228,-501.36189541,0.00038356,30]
[337593077,1725875442238,-498.72045794,0.00038356,30]
[337593078,1725875442247,-500.0,0.00038356,30]
[337593079,1725875442256,-500.0,0.00038356,30]
[337593080,1725875442266,-500.0,0.00038356,30]
[337593081,1725875442275,-1848.28,0.00038356,30]
[337593082,1725875442285,-500.0,0.00038356,30]
[337593083,1725875442295,-500.0,0.00038356,30]
[337593084,1725875442304,-602.85,0.00038356,30]
[337593085,1725875442315,-253.02742132,0.00038356,30]
[337593086,1725875442324,-589.5,0.00038356,30]
[337593087,1725875442334,-500.0,0.00038356,30]
[337593088,1725875442343,-500.0,0.00038356,30]
[337593090,1725875442354,-796.58,0.00038356,30]
[337593092,1725875442364,-500.0,0.00038356,30]
[337593094,1725875442375,-819.58,0.00038356,30]
[337593097,1725875442386,-500.0,0.00038356,30]
[337593099,1725875442395,-500.0,0.00038356,30]
[337593102,1725875442405,-500.0,0.00038356,30]
[337593104,1725875442414,-890.7,0.00038356,30]
[337593106,1725875442424,-556.46,0.00038356,30]
[337593107,1725875442433,-500.0,0.00038356,30]
[337593108,1725875442450,-501.26264946,0.00038356,30]
[337593109,1725875442459,-5068.8,0.00038356,30]
[337593110,1725875442469,-500.0,0.00038356,30]
[337593111,1725875442478,-500.0,0.00038356,30]
[337593112,1725875442488,-500.0,0.00038356,30]
[337593113,1725875442497,-23632.32,0.00038356,30]
[337593114,1725875442507,-500.0,0.00038356,30]
[337593115,1725875442517,-1076.49,0.00038356,30]
[337593116,1725875442526,-500.0,0.00038356,30]
[337593117,1725875442536,-4744.7,0.00038356,30]
[337593118,1725875442547,-500.0,0.00038356,30]
[337593119,1725875442558,-500.0,0.00038356,30]
[337593120,1725875442567,-500.0,0.00038356,30]
[337593121,1725875442577,-557.59,0.00038356,30]
[337593122,1725875442587,-500.0,0.00038356,30]
[337593123,1725875442597,-500.0,0.00038356,30]
[337593124,1725875442606,-658.24,0.00038356,30]
[337593125,1725875442616,-500.0,0.00038356,30]
[337593126,1725875442626,-501.01035668,0.00038356,30]
[337593127,1725875442636,-500.0,0.00038356,30]
[337593128,1725875442645,-500.0,0.00038356,30]
[337593129,1725875442655,-500.0,0.00038356,30]
[337593130,1725875442665,-500.0,0.00038356,30]
[337593131,1725875442675,-4430.49,0.00038356,30]
[337593132,1725875442689,-500.0,0.00038356,30]
[337593133,1725875442701,-518.01197842,0.00038356,30]
[337593134,1725875442712,-2589.34,0.00038356,30]
[337593135,1725875442723,-500.0,0.00038356,30]
[337593136,1725875442732,-152.646701,0.00038356,14]
[337593137,1725875442742,-502.08844306,0.00038356,30]
[337593138,1725875442752,-8716.73,0.00038356,30]
[337593139,1725875442763,-521.75146082,0.00038356,30]
[337593140,1725875442786,-1240.71,0.00038356,30]
[337593141,1725875442799,-500.0,0.00038356,30]
[337593142,1725875442808,-530.0,0.00038356,30]
[337593143,1725875442818,-2501.05,0.00038356,30]
[337593144,1725875442829,-1485.81,0.00038356,30]
[337593145,1725875442840,-5187.77,0.00038356,30]
[337593146,1725875442851,-500.0,0.00038356,30]
[337593147,1725875442862,-1024.21,0.00038356,30]
[337593148,1725875442873,-1286.18,0.00038356,30]
[337593149,1725875442883,-500.0,0.00038356,30]
[337593150,1725875442893,-500.0,0.00038356,30]
[337593151,1725875442903,-1246.91,0.00038356,30]
[337593152,1725875442913,-500.0,0.00038356,30]
[337593153,1725875442923,-500.0,0.00038356,30]
[337593154,1725875442933,-504.22030287,0.00038356,30]
[337593155,1725875442943,-500.0,0.00038356,30]
[337593156,1725875442952,-313.0,0.00038356,30]
[337593157,1725875442962,-500.0,0.00038356,30]
[337593159,1725875442971,-541.02,0.00038356,30]
[337593161,1725875442982,-500.0,0.00038356,30]
[337593162,1725875442992,-500.0,0.00038356,30]
[337593164,1725875443002,-533.92,0.00038356,30]
[337593166,1725875443012,-500.0,0.00038356,30]
[337593167,1725875443022,-500.0,0.00038356,30]
[337593168,1725875443032,-500.0,0.00038356,30]
[337593169,1725875443041,-500.0,0.00038356,30]
[337593170,1725875443051,-500.0,0.00038356,30]
[337593171,1725875443061,-500.0,0.00038356,30]
[337593172,1725875443071,-500.0,0.00038356,30]
[337593173,1725875443081,-1617.31,0.00038356,30]
[337593174,1725875443091,-500.0,0.00038356,30]
[337593175,1725875443101,-500.0,0.00038356,30]
[337593177,1725875443111,-1173.15,0.00038356,30]
[337593178,1725875443121,-946.12,0.00038356,30]
[337593179,1725875443131,-500.0,0.00038356,30]
[337593180,1725875443145,-500.0,0.00038356,30]
[337593182,1725875443155,-932.83,0.00038356,30]
[337593184,1725875443166,-932.83,0.00038356,30]
[337593185,1725875443176,-932.83,0.00038356,30]
[337593187,1725875443188,-932.83,0.00038356,30]
[337593189,1725875443198,-800.21,0.00038356,30]
[337593190,1725875443209,-932.83,0.00038356,30]
[337593191,1725875443219,-932.83,0.00038356,30]
[337593193,1725875443229,-500.0,0.00038356,30]
[337593194,1725875443239,-932.83,0.00038356,30]
[337593195,1725875443250,-932.83,0.00038356,30]
[337593196,1725875443260,-1101.36,0.00038356,30]
[337593197,1725875443270,-501.52442482,0.00038356,30]
[337593198,1725875443280,-500.0,0.00038356,30]
[337593199,1725875443290,-932.83,0.00038356,30]
[337593200,1725875443300,-932.83,0.00038356,30]
[337593201,1725875443310,-932.83,0.00038356,30]
[337593202,1725875443320,-932.83,0.00038356,30]
[337593203,1725875443330,-932.83,0.00038356,30]
[337593204,1725875443340,-932.83,0.00038356,30]
[337593205,1725875443350,-500.0,0.00038356,30]
[337593206,1725875443360,-932.83,0.00038356,30]
[337593207,1725875443370,-932.83,0.00038356,30]
[337593208,1725875443380,-932.83,0.00038356,30]
[337593209,1725875443390,-932.83,0.00038356,30]
[337593210,1725875443400,-932.83,0.00038356,30]
[337593211,1725875443410,-932.83,0.00038356,30]
[337593212,1725875443420,-932.83,0.00038356,30]
[337593213,1725875443430,-932.83,0.00038356,30]
[337593214,1725875443442,-932.83,0.00038356,30]
[337593215,1725875443451,-932.97231556,0.00038356,30]
[337593216,1725875443462,-523.804249,0.00038356,30]
[337593217,1725875443471,-500.0,0.00038356,30]
[337593218,1725875443482,-500.0,0.00038356,30]
[337593219,1725875443492,-500.0,0.00038356,30]
[337593220,1725875443502,-500.0,0.00038356,30]
[337593221,1725875443512,-500.0,0.00038356,30]
[337593222,1725875443522,-999.0,0.00038356,30]